[Event "Fagernes Chess Open 2025"]
[Site "Fagernes"]
[Date "2025.04.13"]
[Round "1.10"]
[White "Jorgensen, Catherine"]
[Black "Yilmaz, Kazim"]
[Result "0-1"]
[Annotator "NA"]
[ECO "C50"]
[WhiteElo "1609"]
[BlackElo "1818"]
[PlyCount "80"]
[EventDate "2025.04.12"]
[EventCountry "NOR"]
[SourceTitle "playchess.com"]
[Source "ChessBase"]
[SourceQuality "1"]
[TimeControl "40/6000+30:2400+30"]

1. e4 {[%emt 0:00:05]} e5 {[%emt 0:00:04]} 2. Nf3 {[%emt 0:00:07]} Nc6 {[%emt 0:00:05]} 3. Bc4 {[%emt 0:00:10]} Bc5 {[%emt 0:00:07]} 4. d4 {[%emt 0:00:18]} Bxd4 {[%emt 0:00:09]} 5. Nxd4 {[%emt 0:00:09]} Nxd4 {[%emt 0:00:08]} 6. Be3 {[%emt 0:00:22]} Nc6 {[%emt 0:00:12]} 7. Qg4 {[%emt 0:01:19]} Qf6 {[%emt 0:00:17]} 8. Qg3 {[%emt 0:01:10]} Qg6 {[%emt 0:00:32]} 9. Nc3 {[%emt 0:01:28]} Qxg3 {[%emt 0:00:52]} 10. fxg3 {[%emt 0:00:27]} Nf6 {[%emt 0:00:11]} 11. Bg5 {[%emt 0:04:58]} Nd4 {[%emt 0:00:29]} 12. O-O-O {[%emt 0:00:59]} c6 {[%emt 0:00:21]} 13. Bxf6 {[%emt 0:06:28]} gxf6 {[%emt 0:00:07]} 14. Rhf1 {[%emt 0:01:15]} Ke7 {[%emt 0:00:24]} 15. Rf2 {[%emt 0:01:36]} Rg8 {[%emt 0:00:10]} 16. Rdf1 {[%emt 0:01:54]} Rg6 {[%emt 0:00:15]} 17. h4 {[%emt 0:12:22]} h5 {[%emt 0:02:11]} 18. Ne2 {[%emt 0:08:33]} Nxe2+ {[%emt 0:00:00]} 19. Bxe2 {[%emt 0:00:06]} Rh6 {[%emt 0:00:00]} 20. Rf5 {[%emt 0:00:45]} d5 {[%emt 0:00:00]} 21. Rxh5 {[%emt 0:01:27]} Rxh5 {[%emt 0:00:00]} 22. Bxh5 {[%emt 0:00:00]} dxe4 {[%emt 0:00:00]} 23. g4 {[%emt 0:04:23]} Be6 {[%emt 0:00:00]} 24. b3 {[%emt 0:00:23]} b5 {[%emt 0:00:18]} 25. Kd2 {[%emt 0:03:22]} Rg8 {[%emt 0:00:14]} 26. Rg1 {[%emt 0:06:03]} Bxg4 {[%emt 0:00:11]} 27. Bxg4 {[%emt 0:01:23]} Rxg4 {[%emt 0:00:07]} 28. h5 {[%emt 0:00:05]} Kf8 {[%emt 0:00:15]} 29. Ke3 {[%emt 0:00:24]} Kg7 {[%emt 0:00:29]} 30. Kf2 {[%emt 0:03:03]} Rh4 {[%emt 0:00:49]} 31. g4 {[%emt 0:01:12]} Rh2+ {[%emt 0:00:09]} 32. Rg2 {[%emt 0:00:05]} Rxg2+ {[%emt 0:00:15]} 33. Kxg2 {[%emt 0:00:04]} Kh6 {[%emt 0:00:09]} 34. Kf2 {[%emt 0:01:14]} f5 {[%emt 0:00:21]} 35. gxf5 {[%emt 0:00:13]} Kxh5 {[%emt 0:00:19]} 36. Ke3 {[%emt 0:00:05]} f6 {[%emt 0:00:15]} 37. b4 {[%emt 0:01:23]} Kg5 {[%emt 0:00:12]} 38. Kxe4 {[%emt 0:00:08]} Kg4 {[%emt 0:00:19]} 39. a3 {[%emt 0:00:21]} Kg5 {[%emt 0:00:07]} 40. c3 {[%emt 0:00:07]} Kg4 {[%emt 0:00:07]} 0-1

[Event "Fagernes Chess Open 2025"]
[Site "Fagernes"]
[Date "2025.04.13"]
[Round "1.11"]
[White "Hansen, Thobias Gotaas"]
[Black "Warstad, Leif E"]
[Result "1-0"]
[Annotator "NA"]
[ECO "C10"]
[WhiteElo "1805"]
[BlackElo "1606"]
[PlyCount "57"]
[EventDate "2025.04.12"]
[EventCountry "NOR"]
[SourceTitle "playchess.com"]
[Source "ChessBase"]
[SourceQuality "1"]
[TimeControl "40/6000+30:2400+30"]

1. e4 {[%emt 0:00:04]} c6 {[%emt 0:00:10]} 2. Nf3 {[%emt 0:00:34]} d5 {[%emt 0:00:49]} 3. Nc3 {[%emt 0:00:59]} e6 {[%emt 0:02:16]} 4. d4 {[%emt 0:01:56]} dxe4 {[%emt 0:02:36]} 5. Nxe4 {[%emt 0:01:07]} Nf6 {[%emt 0:00:12]} 6. Bd3 {[%emt 0:08:05]} Be7 {[%emt 0:00:24]} 7. Qe2 {[%emt 0:01:50]} Nbd7 {[%emt 0:02:53]} 8. O-O {[%emt 0:02:02]} O-O {[%emt 0:00:57]} 9. b3 {[%emt 0:03:46]} Re8 {[%emt 0:04:22]} 10. Ne5 {[%emt 0:02:45]} Nf8 {[%emt 0:07:32]} 11. c4 {[%emt 0:13:03]} Nxe4 {[%emt 0:13:08]} 12. Qxe4 {[%emt 0:01:25]} f6 {[%emt 0:00:58]} 13. Nf3 {[%emt 0:01:31]} Bd6 {[%emt 0:01:10]} 14. Re1 {[%emt 0:01:30]} Bd7 {[%emt 0:04:52]} 15. Bf4 {[%emt 0:08:42]} Qc7 {[%emt 0:11:07]} 16. Bxd6 {[%emt 0:03:44]} Qxd6 {[%emt 0:00:39]} 17. Rad1 {[%emt 0:00:40]} Rad8 {[%emt 0:02:25]} 18. c5 {[%emt 0:07:04]} Qd5 {[%emt 0:05:18]} 19. Nd2 {[%emt 0:09:51]} f5 {[%emt 0:06:55]} 20. Qe3 {[%emt 0:02:54]} Bc8 {[%emt 0:01:31]} 21. Nf3 {[%emt 0:01:30]} Qd7 {[%emt 0:01:01]} 22. Bc4 {[%emt 0:03:25]} Kh8 {[%emt 0:00:19]} 23. Ne5 {[%emt 0:01:21]} Qe7 {[%emt 0:02:46]} 24. b4 {[%emt 0:09:37]} Qf6 {[%emt 0:01:31]} 25. a4 {[%emt 0:01:52]} a6 {[%emt 0:02:42]} 26. b5 {[%emt 0:04:38]} axb5 {[%emt 0:00:26]} 27. axb5 {[%emt 0:00:11]} Bd7 {[%emt 0:02:46]} 28. b6 {[%emt 0:02:22]} Bc8 {[%emt 0:04:28]} 29. Be2 {[%emt 0:01:52]} 1-0

[Event "Fagernes Chess Open 2025"]
[Site "Fagernes"]
[Date "2025.04.13"]
[Round "1.12"]
[White "Ruud, Mikael"]
[Black "Stai, Sondre"]
[Result "0-1"]
[Annotator "NA"]
[ECO "D51"]
[WhiteElo "1588"]
[BlackElo "1786"]
[PlyCount "54"]
[EventDate "2025.04.12"]
[EventCountry "NOR"]
[SourceTitle "playchess.com"]
[Source "ChessBase"]
[SourceQuality "1"]
[TimeControl "40/6000+30:2400+30"]

1. d4 {[%emt 0:00:11]} d5 {[%emt 0:00:10]} 2. c4 {[%emt 0:00:43]} e6 {[%emt 0:00:07]} 3. Nc3 {[%emt 0:00:05]} Nf6 {[%emt 0:00:05]} 4. Bg5 {[%emt 0:00:13]} Nbd7 {[%emt 0:01:54]} 5. e3 {[%emt 0:00:22]} Bb4 {[%emt 0:06:11]} 6. Qc2 {[%emt 0:02:55]} h6 {[%emt 0:01:55]} 7. Bh4 {[%emt 0:00:11]} c5 {[%emt 0:07:34]} 8. a3 {[%emt 0:02:05]} Bxc3+ {[%emt 0:01:38]} 9. Qxc3 {[%emt 0:02:38]} g5 {[%emt 0:06:16]} 10. Bg3 {[%emt 0:00:26]} Ne4 {[%emt 0:00:08]} 11. Qc2 {[%emt 0:03:13]} Qa5+ {[%emt 0:05:22]} 12. Kd1 {[%emt 0:01:13]} b5 {[%emt 0:10:03]} 13. cxd5 {[%emt 0:02:24]} exd5 {[%emt 0:00:40]} 14. dxc5 {[%emt 0:01:46]} b4 {[%emt 0:02:57]} 15. c6 {[%emt 0:04:51]} Ndc5 {[%emt 0:08:52]} 16. f3 {[%emt 0:05:54]} b3 {[%emt 0:05:31]} 17. Qe2 {[%emt 0:02:18]} Nxg3 {[%emt 0:10:47]} 18. hxg3 {[%emt 0:00:43]} Bf5 {[%emt 0:01:04]} 19. Qd2 {[%emt 0:04:47]} Bc2+ {[%emt 0:01:08]} 20. Ke1 {[%emt 0:00:50]} Qc7 {[%emt 0:02:56]} 21. Qxd5 {[%emt 0:00:54]} Qxg3+ {[%emt 0:02:13]} 22. Ke2 {[%emt 0:02:15]} Bd3+ {[%emt 0:05:38]} 23. Kd2 {[%emt 0:00:38]} Bxf1 {[%emt 0:05:12]} 24. Qxc5 {[%emt 0:00:20]} Qf2+ {[%emt 0:01:14]} 25. Kc3 {[%emt 0:01:31]} Qc2+ {[%emt 0:00:08]} 26. Kb4 {[%emt 0:00:27]} Rb8+ {[%emt 0:00:15]} 27. Ka4 {[%emt 0:00:14]} Qxc5 {[%emt 0:00:22]} 0-1

[Event "Fagernes Chess Open 2025"]
[Site "Fagernes"]
[Date "2025.04.13"]
[Round "1.13"]
[White "Digernes, Mikael"]
[Black "Bollestad, Leiv Ove"]
[Result "0-1"]
[Annotator "NA"]
[ECO "C45"]
[WhiteElo "1781"]
[BlackElo "1585"]
[PlyCount "66"]
[EventDate "2025.04.12"]
[EventCountry "NOR"]
[SourceTitle "playchess.com"]
[Source "ChessBase"]
[SourceQuality "1"]
[TimeControl "40/6000+30:2400+30"]

1. e4 {[%emt 0:00:13]} e5 {[%emt 0:00:22]} 2. Nf3 {[%emt 0:00:23]} Nc6 {[%emt 0:00:34]} 3. d4 {[%emt 0:00:13]} exd4 {[%emt 0:00:57]} 4. Bc4 {[%emt 0:00:12]} d6 {[%emt 0:03:39]} 5. Nxd4 {[%emt 0:00:29]} Nxd4 {[%emt 0:03:13]} 6. Qxd4 {[%emt 0:00:09]} Nf6 {[%emt 0:00:24]} 7. Nc3 {[%emt 0:03:59]} Be7 {[%emt 0:01:34]} 8. O-O {[%emt 0:02:03]} O-O {[%emt 0:00:39]} 9. f4 {[%emt 0:01:57]} b6 {[%emt 0:03:37]} 10. Qd3 {[%emt 0:08:05]} Bb7 {[%emt 0:03:13]} 11. Bd2 {[%emt 0:02:47]} Nd7 {[%emt 0:08:02]} 12. Rae1 {[%emt 0:15:02]} Nc5 {[%emt 0:08:00]} 13. Qe2 {[%emt 0:19:16]} a5 {[%emt 0:06:04]} 14. Nd5 {[%emt 0:07:01]} c6 {[%emt 0:04:35]} 15. Nxe7+ {[%emt 0:00:41]} Qxe7 {[%emt 0:00:10]} 16. f5 {[%emt 0:01:58]} d5 {[%emt 0:01:13]} 17. f6 {[%emt 0:24:05]} Qxe4 {[%emt 0:02:35]} 18. fxg7 {[%emt 0:05:08]} Rfe8 {[%emt 0:08:21]} 19. Qf2 {[%emt 0:02:56]} Qg6 {[%emt 0:00:09]} 20. Bd3 {[%emt 0:00:42]} Nxd3 {[%emt 0:04:51]} 21. cxd3 {[%emt 0:00:07]} Rxe1 {[%emt 0:01:42]} 22. Rxe1 {[%emt 0:01:30]} c5 {[%emt 0:00:19]} 23. Re3 {[%emt 0:04:24]} d4 {[%emt 0:03:36]} 24. Rg3 {[%emt 0:00:08]} Qe6 {[%emt 0:00:15]} 25. Rh3 {[%emt 0:05:12]} Qg4 {[%emt 0:08:16]} 26. Qf1 {[%emt 0:03:02]} Re8 {[%emt 0:03:01]} 27. g3 {[%emt 0:01:45]} Re2 {[%emt 0:02:26]} 28. Rh4 {[%emt 0:00:24]} Qe6 {[%emt 0:00:48]} 29. Rh6 {[%emt 0:00:35]} Qe8 {[%emt 0:01:09]} 30. Rxb6 {[%emt 0:00:30]} Rg2+ {[%emt 0:00:31]} 31. Qxg2 {[%emt 0:00:14]} Bxg2 {[%emt 0:00:14]} 32. Kxg2 {[%emt 0:00:10]} Qe2+ {[%emt 0:00:10]} 33. Kh3 {[%emt 0:00:12]} Qxd2 {[%emt 0:00:12]} 0-1

[Event "Fagernes Chess Open 2025"]
[Site "Fagernes"]
[Date "2025.04.13"]
[Round "1.14"]
[White "Holten, Terje"]
[Black "Kopperud, Vidar Aleksander"]
[Result "0-1"]
[Annotator "NA"]
[ECO "B92"]
[WhiteElo "1566"]
[BlackElo "1778"]
[PlyCount "76"]
[EventDate "2025.04.12"]
[EventCountry "NOR"]
[SourceTitle "playchess.com"]
[Source "ChessBase"]
[SourceQuality "1"]
[TimeControl "40/6000+30:2400+30"]

1. e4 {[%emt 0:00:01]} c5 {[%emt 0:00:09]} 2. Nf3 {[%emt 0:00:06]} d6 {[%emt 0:00:08]} 3. d4 {[%emt 0:00:09]} cxd4 {[%emt 0:00:11]} 4. Nxd4 {[%emt 0:00:04]} Nf6 {[%emt 0:00:15]} 5. Nc3 {[%emt 0:00:18]} a6 {[%emt 0:00:13]} 6. Be2 {[%emt 0:01:40]} e5 {[%emt 0:00:46]} 7. Nb3 {[%emt 0:00:57]} Be7 {[%emt 0:00:31]} 8. O-O {[%emt 0:00:25]} Be6 {[%emt 0:02:11]} 9. Be3 {[%emt 0:04:29]} O-O {[%emt 0:03:52]} 10. Bf3 {[%emt 0:04:55]} Nbd7 {[%emt 0:02:35]} 11. Re1 {[%emt 0:05:06]} b5 {[%emt 0:04:55]} 12. a3 {[%emt 0:05:23]} Nb6 {[%emt 0:07:50]} 13. Nd2 {[%emt 0:03:16]} Qc7 {[%emt 0:05:19]} 14. Rc1 {[%emt 0:10:54]} Rac8 {[%emt 0:07:41]} 15. Bxb6 {[%emt 0:06:43]} Qxb6 {[%emt 0:00:26]} 16. Nf1 {[%emt 0:02:45]} Rc5 {[%emt 0:26:10]} 17. Ne3 {[%emt 0:04:28]} g6 {[%emt 0:06:07]} 18. Ncd5 {[%emt 0:08:57]} Bxd5 {[%emt 0:01:51]} 19. Nxd5 {[%emt 0:01:37]} Nxd5 {[%emt 0:01:00]} 20. exd5 {[%emt 0:00:07]} f5 {[%emt 0:02:12]} 21. c3 {[%emt 0:03:06]} e4 {[%emt 0:05:13]} 22. b4 {[%emt 0:02:11]} Rc7 {[%emt 0:01:08]} 23. Be2 {[%emt 0:00:38]} Rfc8 {[%emt 0:00:46]} 24. Qd2 {[%emt 0:02:16]} Bf6 {[%emt 0:00:57]} 25. Rf1 {[%emt 0:02:55]} Rxc3 {[%emt 0:03:11]} 26. Rxc3 {[%emt 0:00:17]} Rxc3 {[%emt 0:00:25]} 27. g4 {[%emt 0:00:46]} e3 {[%emt 0:02:47]} 28. Qa2 {[%emt 0:00:47]} exf2+ {[%emt 0:01:28]} 29. Rxf2 {[%emt 0:00:09]} Bd4 {[%emt 0:00:23]} 30. Bf1 {[%emt 0:00:19]} Rf3 {[%emt 0:00:37]} 31. Qe2 {[%emt 0:01:03]} Bxf2+ {[%emt 0:03:35]} 32. Kg2 {[%emt 0:00:12]} fxg4 {[%emt 0:01:48]} 33. Qe6+ {[%emt 0:00:12]} Rf7 {[%emt 0:01:29]} 34. Qxg4 {[%emt 0:00:31]} Bg1 {[%emt 0:01:21]} 35. Qc8+ {[%emt 0:00:20]} Kg7 {[%emt 0:00:15]} 36. Qc3+ {[%emt 0:00:37]} Qd4 {[%emt 0:00:21]} 37. Qc2 {[%emt 0:00:17]} Rf2+ {[%emt 0:00:12]} 38. Qxf2 {[%emt 0:00:09]} Qxf2+ {[%emt 0:00:09]} 0-1

[Event "Fagernes Chess Open 2025"]
[Site "Fagernes"]
[Date "2025.04.13"]
[Round "1.15"]
[White "Neukamm, Christian"]
[Black "Nebell, Anne Grete"]
[Result "1-0"]
[Annotator "NA"]
[ECO "C47"]
[WhiteElo "1776"]
[BlackElo "1561"]
[PlyCount "65"]
[EventDate "2025.04.12"]
[EventCountry "NOR"]
[SourceTitle "playchess.com"]
[Source "ChessBase"]
[SourceQuality "1"]
[TimeControl "40/6000+30:2400+30"]

1. e4 {[%emt 0:00:16]} e5 {[%emt 0:00:08]} 2. Nf3 {[%emt 0:00:19]} Nc6 {[%emt 0:00:11]} 3. Nc3 {[%emt 0:00:25]} Nf6 {[%emt 0:00:45]} 4. a3 {[%emt 0:00:20]} Be7 {[%emt 0:02:37]} 5. d4 {[%emt 0:00:48]} d6 {[%emt 0:00:53]} 6. Bb5 {[%emt 0:01:05]} a6 {[%emt 0:01:12]} 7. Bxc6+ {[%emt 0:02:03]} bxc6 {[%emt 0:00:22]} 8. dxe5 {[%emt 0:00:46]} Ng4 {[%emt 0:02:27]} 9. exd6 {[%emt 0:01:49]} cxd6 {[%emt 0:00:17]} 10. h3 {[%emt 0:09:38]} Ne5 {[%emt 0:04:37]} 11. Bf4 {[%emt 0:03:45]} Ng6 {[%emt 0:03:00]} 12. Bg3 {[%emt 0:02:44]} O-O {[%emt 0:01:36]} 13. O-O {[%emt 0:01:38]} Bb7 {[%emt 0:04:21]} 14. Qd2 {[%emt 0:02:49]} Qc7 {[%emt 0:02:39]} 15. Rad1 {[%emt 0:02:13]} Rad8 {[%emt 0:00:19]} 16. b3 {[%emt 0:21:25]} Ne5 {[%emt 0:02:59]} 17. Nd4 {[%emt 0:01:35]} Bc8 {[%emt 0:04:32]} 18. f4 {[%emt 0:08:37]} Ng6 {[%emt 0:02:24]} 19. Qf2 {[%emt 0:02:56]} f5 {[%emt 0:01:24]} 20. Qe2 {[%emt 0:11:29]} Qb6 {[%emt 0:16:49]} 21. Qc4+ {[%emt 0:05:41]} Kh8 {[%emt 0:03:17]} 22. Qxc6 {[%emt 0:00:20]} Qa5 {[%emt 0:00:25]} 23. Be1 {[%emt 0:03:50]} fxe4 {[%emt 0:04:42]} 24. Qxe4 {[%emt 0:03:46]} Qb6 {[%emt 0:07:31]} 25. Nd5 {[%emt 0:03:10]} Qa7 {[%emt 0:00:08]} 26. Bf2 {[%emt 0:01:00]} Qb7 {[%emt 0:03:21]} 27. Rfe1 {[%emt 0:03:49]} Rde8 {[%emt 0:04:20]} 28. Nxe7 {[%emt 0:02:09]} Rxe7 {[%emt 0:01:39]} 29. Qxb7 {[%emt 0:00:33]} Rxb7 {[%emt 0:00:05]} 30. f5 {[%emt 0:02:07]} Ne5 {[%emt 0:02:32]} 31. Ne6 {[%emt 0:02:19]} Bxe6 {[%emt 0:02:05]} 32. fxe6 {[%emt 0:00:08]} Re7 {[%emt 0:01:36]} 33. Rxe5 {[%emt 0:02:58]} 1-0

[Event "Fagernes Chess Open 2025"]
[Site "Fagernes"]
[Date "2025.04.13"]
[Round "1.16"]
[White "Skotheim, Havard"]
[Black "Rynning, Rune Kleiven"]
[Result "0-1"]
[Annotator "NA"]
[ECO "B12"]
[WhiteElo "1548"]
[BlackElo "1776"]
[PlyCount "44"]
[EventDate "2025.04.12"]
[EventCountry "NOR"]
[SourceTitle "playchess.com"]
[Source "ChessBase"]
[SourceQuality "1"]
[TimeControl "40/6000+30:2400+30"]

1. e4 {[%emt 0:00:04]} c6 {[%emt 0:00:07]} 2. d4 {[%emt 0:00:08]} d5 {[%emt 0:00:07]} 3. e5 {[%emt 0:00:18]} Bf5 {[%emt 0:00:10]} 4. Nc3 {[%emt 0:00:50]} e6 {[%emt 0:00:17]} 5. Nge2 {[%emt 0:00:40]} c5 {[%emt 0:04:55]} 6. f3 {[%emt 0:09:20]} Nc6 {[%emt 0:02:59]} 7. g4 {[%emt 0:01:10]} Qh4+ {[%emt 0:04:37]} 8. Ng3 {[%emt 0:01:40]} Bg6 {[%emt 0:07:30]} 9. Bb5 {[%emt 0:02:57]} h5 {[%emt 0:12:03]} 10. Be3 {[%emt 0:07:21]} a6 {[%emt 0:09:58]} 11. Bxc6+ {[%emt 0:00:39]} bxc6 {[%emt 0:00:11]} 12. dxc5 {[%emt 0:01:45]} hxg4 {[%emt 0:00:21]} 13. fxg4 {[%emt 0:06:43]} Qxg3+ {[%emt 0:01:30]} 14. Kd2 {[%emt 0:03:48]} Rxh2+ {[%emt 0:02:36]} 15. Rxh2 {[%emt 0:00:50]} Qxh2+ {[%emt 0:02:32]} 16. Kc1 {[%emt 0:02:09]} d4 {[%emt 0:07:04]} 17. Bxd4 {[%emt 0:02:21]} Rd8 {[%emt 0:04:06]} 18. Ne2 {[%emt 0:02:56]} Bxc5 {[%emt 0:00:41]} 19. c3 {[%emt 0:00:55]} Qh6+ {[%emt 0:08:31]} 20. Qd2 {[%emt 0:00:27]} Qh1+ {[%emt 0:00:41]} 21. Qd1 {[%emt 0:01:31]} Qe4 {[%emt 0:02:30]} 22. Qa4 {[%emt 0:04:03]} Be7 {[%emt 0:05:17]} 0-1

[Event "Fagernes Chess Open 2025"]
[Site "Fagernes"]
[Date "2025.04.13"]
[Round "1.17"]
[White "Vollheim, Daniel O"]
[Black "Vatneodegard, Marie"]
[Result "1-0"]
[Annotator "NA"]
[ECO "A37"]
[WhiteElo "1764"]
[BlackElo "1538"]
[PlyCount "85"]
[EventDate "2025.04.12"]
[EventCountry "NOR"]
[SourceTitle "playchess.com"]
[Source "ChessBase"]
[SourceQuality "1"]
[TimeControl "40/6000+30:2400+30"]

1. c4 {[%emt 0:00:03]} c5 {[%emt 0:00:25]} 2. Nc3 {[%emt 0:00:07]} Nc6 {[%emt 0:00:40]} 3. g3 {[%emt 0:00:05]} g6 {[%emt 0:00:46]} 4. Bg2 {[%emt 0:00:41]} Bg7 {[%emt 0:00:11]} 5. Nf3 {[%emt 0:00:12]} d6 {[%emt 0:01:23]} 6. d3 {[%emt 0:00:14]} Bf5 {[%emt 0:00:29]} 7. Bf4 {[%emt 0:00:16]} Qd7 {[%emt 0:01:13]} 8. h3 {[%emt 0:04:08]} Nf6 {[%emt 0:05:38]} 9. Qd2 {[%emt 0:00:22]} O-O {[%emt 0:06:02]} 10. Bh6 {[%emt 0:03:34]} Rab8 {[%emt 0:03:13]} 11. h4 {[%emt 0:02:10]} Bg4 {[%emt 0:04:19]} 12. O-O {[%emt 0:02:35]} Bh3 {[%emt 0:01:33]} 13. Bxg7 {[%emt 0:05:02]} Kxg7 {[%emt 0:00:15]} 14. d4 {[%emt 0:00:12]} Bxg2 {[%emt 0:04:36]} 15. Kxg2 {[%emt 0:00:21]} cxd4 {[%emt 0:07:52]} 16. Nxd4 {[%emt 0:00:15]} h5 {[%emt 0:00:29]} 17. Rfd1 {[%emt 0:03:45]} a6 {[%emt 0:05:51]} 18. b3 {[%emt 0:03:59]} Rfc8 {[%emt 0:05:08]} 19. Rac1 {[%emt 0:05:06]} Ne5 {[%emt 0:04:14]} 20. Qg5 {[%emt 0:23:59]} Kh7 {[%emt 0:07:50]} 21. Qf4 {[%emt 0:05:36]} Qg4 {[%emt 0:09:05]} 22. Qxg4 {[%emt 0:01:57]} Nexg4 {[%emt 0:00:28]} 23. Nf3 {[%emt 0:01:42]} Rc5 {[%emt 0:04:54]} 24. Rd4 {[%emt 0:14:23]} Kg7 {[%emt 0:05:37]} 25. e3 {[%emt 0:10:48]} Rbc8 {[%emt 0:02:24]} 26. Na4 {[%emt 0:01:42]} R5c6 {[%emt 0:02:45]} 27. Rcd1 {[%emt 0:00:48]} b5 {[%emt 0:01:17]} 28. Nb2 {[%emt 0:01:28]} Ne5 {[%emt 0:09:04]} 29. Nxe5 {[%emt 0:01:28]} dxe5 {[%emt 0:00:18]} 30. R4d2 {[%emt 0:00:22]} Kf8 {[%emt 0:00:55]} 31. Rd8+ {[%emt 0:02:00]} Rxd8 {[%emt 0:01:17]} 32. Rxd8+ {[%emt 0:00:00]} Kg7 {[%emt 0:00:09]} 33. Rb8 {[%emt 0:00:00]} Nd7 {[%emt 0:01:24]} 34. Rb7 {[%emt 0:00:00]} Rd6 {[%emt 0:02:11]} 35. cxb5 {[%emt 0:00:00]} axb5 {[%emt 0:00:49]} 36. Rxb5 {[%emt 0:00:14]} Kf6 {[%emt 0:01:50]} 37. Nc4 {[%emt 0:00:19]} Ra6 {[%emt 0:02:19]} 38. a4 {[%emt 0:00:12]} e6 {[%emt 0:01:02]} 39. Kf3 {[%emt 0:01:49]} Rc6 {[%emt 0:02:00]} 40. a5 {[%emt 0:00:38]} Kf5 {[%emt 0:05:49]} 41. Nb6 {[%emt 0:43:44]} Nc5 {[%emt 0:41:28]} 42. Rxc5 {[%emt 0:00:32]} Rxc5 {[%emt 0:00:50]} 43. e4+ {[%emt 0:00:05]} 1-0

[Event "Fagernes Chess Open 2025"]
[Site "Fagernes"]
[Date "2025.04.13"]
[Round "1.18"]
[White "Jullum, Hege Ibsen"]
[Black "Kuzmenko, Mykhailo"]
[Result "0-1"]
[Annotator "NA"]
[ECO "D05"]
[WhiteElo "1484"]
[BlackElo "1747"]
[PlyCount "108"]
[EventDate "2025.04.12"]
[EventCountry "NOR"]
[SourceTitle "playchess.com"]
[Source "ChessBase"]
[SourceQuality "1"]
[TimeControl "40/6000+30:2400+30"]

1. d4 {[%emt 0:00:08]} d5 {[%emt 0:00:09]} 2. Nf3 {[%emt 0:00:07]} Nf6 {[%emt 0:00:12]} 3. e3 {[%emt 0:00:21]} e6 {[%emt 0:00:19]} 4. Bd3 {[%emt 0:00:21]} c5 {[%emt 0:00:32]} 5. b3 {[%emt 0:00:16]} Nc6 {[%emt 0:03:08]} 6. O-O {[%emt 0:01:03]} Be7 {[%emt 0:01:08]} 7. Bb2 {[%emt 0:00:24]} h6 {[%emt 0:02:34]} 8. Nbd2 {[%emt 0:01:54]} b6 {[%emt 0:01:08]} 9. Ne5 {[%emt 0:01:03]} Bb7 {[%emt 0:00:31]} 10. Ndf3 {[%emt 0:06:18]} O-O {[%emt 0:02:35]} 11. a3 {[%emt 0:03:48]} Qc7 {[%emt 0:05:41]} 12. Nd2 {[%emt 0:07:11]} cxd4 {[%emt 0:03:24]} 13. exd4 {[%emt 0:00:22]} Nxe5 {[%emt 0:13:09]} 14. dxe5 {[%emt 0:00:25]} Nd7 {[%emt 0:00:03]} 15. Qe2 {[%emt 0:07:31]} Nc5 {[%emt 0:00:46]} 16. Rac1 {[%emt 0:01:40]} Nxd3 {[%emt 0:01:40]} 17. cxd3 {[%emt 0:00:20]} Qd7 {[%emt 0:00:13]} 18. d4 {[%emt 0:00:35]} a5 {[%emt 0:01:18]} 19. Rfd1 {[%emt 0:02:09]} Ba6 {[%emt 0:00:43]} 20. Qe3 {[%emt 0:01:01]} Rfc8 {[%emt 0:00:57]} 21. Nb1 {[%emt 0:03:36]} Rxc1 {[%emt 0:03:39]} 22. Rxc1 {[%emt 0:00:29]} Rc8 {[%emt 0:00:18]} 23. Nc3 {[%emt 0:00:34]} Rc6 {[%emt 0:04:58]} 24. a4 {[%emt 0:02:49]} Qc8 {[%emt 0:04:04]} 25. g3 {[%emt 0:01:17]} Bb4 {[%emt 0:02:01]} 26. Na2 {[%emt 0:03:21]} Rc2 {[%emt 0:04:27]} 27. Nxb4 {[%emt 0:01:31]} axb4 {[%emt 0:00:41]} 28. Kg2 {[%emt 0:02:21]} Qc7 {[%emt 0:03:16]} 29. Qe1 {[%emt 0:01:21]} Bd3 {[%emt 0:01:14]} 30. g4 {[%emt 0:02:28]} Qe7 {[%emt 0:08:37]} 31. Rxc2 {[%emt 0:01:28]} Bxc2 {[%emt 0:00:12]} 32. Bc1 {[%emt 0:01:30]} Bxb3 {[%emt 0:01:25]} 33. Bd2 {[%emt 0:00:23]} Bxa4 {[%emt 0:00:41]} 34. Bxb4 {[%emt 0:00:38]} Qc7 {[%emt 0:00:34]} 35. Qc3 {[%emt 0:05:53]} Qc4 {[%emt 0:04:45]} 36. Kg3 {[%emt 0:01:20]} Qf1 {[%emt 0:01:51]} 37. Qe1 {[%emt 0:04:54]} Qd3+ {[%emt 0:01:24]} 38. Qe3 {[%emt 0:03:38]} Qb1 {[%emt 0:01:04]} 39. Qe1 {[%emt 0:01:35]} Qd3+ {[%emt 0:03:30]} 40. Qe3 {[%emt 0:00:12]} Qf1 {[%emt 0:01:00]} 41. Qe1 {[%emt 0:40:52]} Qd3+ {[%emt 0:40:53]} 42. Qe3 {[%emt 0:00:58]} Qd1 {[%emt 0:00:19]} 43. Qe1 {[%emt 0:00:37]} Qxd4 {[%emt 0:00:14]} 44. Bc3 {[%emt 0:00:55]} Qc4 {[%emt 0:02:16]} 45. Qd2 {[%emt 0:01:11]} b5 {[%emt 0:01:56]} 46. f4 {[%emt 0:00:40]} Bc2 {[%emt 0:02:44]} 47. Kh4 {[%emt 0:04:27]} Qe4 {[%emt 0:02:51]} 48. Kg3 {[%emt 0:01:48]} Bd3 {[%emt 0:00:55]} 49. Ba5 {[%emt 0:01:14]} Be2 {[%emt 0:01:35]} 50. Qc3 {[%emt 0:00:24]} d4 {[%emt 0:01:21]} 51. Qc8+ {[%emt 0:00:41]} Kh7 {[%emt 0:00:12]} 52. h3 {[%emt 0:00:34]} Qf3+ {[%emt 0:00:30]} 53. Kh4 {[%emt 0:00:16]} Qf2+ {[%emt 0:00:20]} 54. Kh5 {[%emt 0:00:24]} g6# {[%emt 0:00:03]} 0-1